fUST/lending_fUST_20260114
["ID","MTS","AMOUNT","RATE_DAILY","PERIOD"]
[401849997,1768386644257,-50340.12423014,0.000242,2]
[401849999,1768386644266,-500.0,0.00024254,2]
[401850001,1768386644276,-500.0,0.00024279,2]
[401850003,1768386644285,-2222.24,0.000243,7]
[401850005,1768386644294,-942.15974114,0.0002431,2]
[401850007,1768386644303,-500.0,0.00024325,2]
[401850009,1768386644312,-587.44774324,0.00024335,18]
[401850011,1768386644321,-1126.0,0.000245,5]
[401850013,1768386644331,-700.0,0.0002455,2]
[401850015,1768386644340,-500.0,0.00024557,2]
[401850017,1768386644350,-500.0,0.0002459,2]
[401850019,1768386644359,-253.17,0.000246,7]
[401850021,1768386644368,-253.14,0.000246,7]
[401850023,1768386644377,-4120.47,0.000246,14]
[401850026,1768386644390,-500.0,0.0002461,2]
[401850027,1768386644400,-1082.98429516,0.00024613,2]
[401850029,1768386644410,-700.0,0.00024631,2]
[401850031,1768386644419,-514.22907277,0.0002465,2]
[401850033,1768386644428,-156856.39382059,0.0002465,2]
[401850035,1768386644438,-700.0,0.00024654,2]
[401850037,1768386644447,-1150.0,0.00024658,2]
[401850039,1768386644456,-190.0,0.00024661,2]
[401850041,1768386644468,-32272.36,0.000247,2]
[401850043,1768386644477,-24406.75,0.000247,3]
[401850045,1768386644486,-167.77,0.000247,7]
[401850047,1768386644495,-700.0,0.00024722,2]
[401850049,1768386644504,-16836.12060946,0.00024774,2]
[401850051,1768386644514,-700.0,0.00024789,2]
[401850053,1768386644523,-500.0,0.00024804,2]
[401850055,1768386644531,-1000.0,0.00024817,10]
[401850057,1768386644540,-1000.0,0.00024817,10]
[401850059,1768386644556,-1000.0,0.00024817,10]
[401850061,1768386644566,-500.0,0.00024873,2]
[401850063,1768386644575,-558728.023492,0.000249,2]
[401850065,1768386644585,-151.0,0.000249,7]
[401850066,1768386644594,-151.0,0.000249,7]
[401850068,1768386644603,-151.0,0.000249,7]
[401850070,1768386644613,-168.612509,0.000249,7]
[401850072,1768386644622,-168.612509,0.000249,7]
[401850074,1768386644632,-168.612509,0.000249,7]
[401850076,1768386644641,-168.612509,0.000249,7]
[401850078,1768386644650,-151.0,0.000249,7]
[401850080,1768386644660,-151.0,0.000249,7]
[401850082,1768386644669,-151.0,0.000249,7]
[401850084,1768386644678,-160.471335,0.000249,7]
[401850086,1768386644687,-151.0,0.000249,7]
[401850088,1768386644697,-151.0,0.000249,7]
[401850090,1768386644707,-155.398666,0.000249,7]
[401850092,1768386644718,-151.0,0.000249,2]
[401850094,1768386644727,-151.0,0.000249,2]
[401850096,1768386644738,-151.0,0.000249,7]
[401850098,1768386644748,-151.0,0.000249,7]
[401850100,1768386644757,-151.0,0.000249,7]
[401850101,1768386644768,-171.320259,0.000249,7]
[401850103,1768386644777,-151.0,0.000249,7]
[401850105,1768386644787,-2297.615063,0.000249,7]
[401850107,1768386644796,-2297.615063,0.000249,7]
[401850109,1768386644807,-2297.615063,0.000249,7]
[401850111,1768386644817,-2297.615063,0.000249,7]
[401850113,1768386644828,-151.0,0.000249,7]
[401850115,1768386644837,-151.0,0.000249,7]
[401850117,1768386644847,-839.619726,0.000249,7]
[401850119,1768386644857,-839.619726,0.000249,7]
[401850121,1768386644867,-839.619726,0.000249,7]
[401850123,1768386644877,-151.0,0.000249,7]
[401850125,1768386644885,-151.0,0.000249,7]
[401850127,1768386644896,-839.619726,0.000249,7]
[401850128,1768386644905,-255.526264,0.000249,7]
[401850130,1768386644915,-151.0,0.000249,7]
[401850132,1768386644924,-151.0,0.000249,7]
[401850134,1768386644934,-500.0,0.00024985,2]
[401850136,1768386644943,-500.0,0.00024986,2]
[401850138,1768386644952,-20000.0,0.00025,4]
[401850140,1768386644963,-10056.03999481,0.00025,15]
[401850150,1768386645055,-1086.00529944,0.00025,2]
[401850152,1768386645066,-2675.92587353,0.00025,2]
[401850154,1768386645077,-90000.0,0.00025,2]
[401850156,1768386645087,-10364.0,0.00025,2]
[401850158,1768386645096,-500.0,0.00025,2]
[401850160,1768386645105,-2611.93964778,0.00025,2]
[401850162,1768386645115,-760.01897251,0.00025,2]
[401850164,1768386645125,-160.03118063,0.00025,2]
[401850166,1768386645135,-1020.0,0.00025,2]
[401850168,1768386645144,-2000.0,0.00025,7]
[401850170,1768386645154,-500.0,0.00025009,7]
[401850172,1768386645163,-500.0,0.00025026,7]
[401850173,1768386645173,-500.0,0.00025069,7]
[401850175,1768386645183,-355.0,0.00025096,14]
[401850177,1768386645193,-587.44774324,0.00025157,19]
[401850179,1768386645202,-323.9,0.00025196,2]
[401850181,1768386645211,-580.66727248,0.000252,5]
[401850183,1768386645220,-250.0,0.00025205,2]
[401850185,1768386645230,-1250.0,0.00025205,2]
[401850187,1768386645242,-3418.92045369,0.00025219,11]
[401850189,1768386645252,-2222.24,0.000253,7]
[401850191,1768386645262,-846.224737,0.00025342,2]
[401850193,1768386645271,-500.0,0.00025353,7]
[401850195,1768386645280,-500.0,0.00025465,7]
[401850197,1768386645290,-900.0,0.00025469,3]
[401850198,1768386645299,-500.0,0.00025492,7]
[401850200,1768386645309,-1000.0,0.000255,2]
[401850202,1768386645327,-700.0,0.00025516,7]
[401850204,1768386645336,-700.0,0.0002556,7]
[401850206,1768386645345,-160.0,0.00025641,3]
[401850208,1768386645356,-500.0,0.00025703,7]
[401850210,1768386645365,-350.0,0.00025753,2]
[401850212,1768386645375,-1350.0,0.00025753,2]
[401850214,1768386645384,-700.0,0.0002576,7]
[401850216,1768386645398,-2000.07602471,0.00025768,2]
[401850218,1768386645407,-700.0,0.00025778,7]
[401850220,1768386645416,-253.17,0.000258,7]
[401850222,1768386645425,-253.14,0.000258,7]
[401850224,1768386645435,-4120.47,0.000258,14]
[401850226,1768386645444,-500.0,0.00025843,7]
[401850228,1768386645453,-499.3,0.00025867,7]
[401850230,1768386645463,-32272.36,0.000259,2]
[401850232,1768386645474,-500.0,0.00025905,7]
[401850234,1768386645483,-700.0,0.00025917,7]
[401850236,1768386645492,-500.0,0.00025944,7]
[401850238,1768386645501,-160.0,0.00025953,4]
[401850240,1768386645510,-587.44774324,0.00025979,21]
[401850242,1768386645520,-290.0,0.00026,2]
[401850244,1768386645529,-6803.24817253,0.00026,10]
[401850246,1768386645538,-530.08019871,0.00026,2]
[401850248,1768386645547,-5828.88826338,0.00026,30]
[401850250,1768386645558,-19900.0,0.00026,2]
[401850252,1768386645568,-746.98816634,0.00026,120]
[401850254,1768386645577,-161.0,0.00026,5]
[401850255,1768386645586,-1020.0,0.00026,2]
[401850257,1768386645595,-1041.66666667,0.00026,10]
[401850259,1768386645604,-2000.0,0.00026,7]
[401850261,1768386645614,-4840.44,0.00026027,2]
[401850263,1768386645623,-500.0,0.00026053,7]
[401850265,1768386645633,-500.0,0.00026102,7]
[401850267,1768386645642,-194.72949231,0.0002616,2]
[401850269,1768386645651,-307.0,0.00026192,19]
[401850271,1768386645660,-500.0,0.00026215,7]
[401850273,1768386645669,-160.0,0.00026265,5]
[401850275,1768386645679,-500.0,0.00026291,7]
[401850277,1768386645687,-728.0,0.000263,3]
[401850279,1768386645696,-2222.24,0.000263,7]
[401850280,1768386645706,-450.0,0.00026301,2]
[401850282,1768386645715,-1450.0,0.00026301,2]
[401850284,1768386645724,-500.0,0.00026302,2]
[401850286,1768386645734,-170.92021255,0.00026302,2]
[401850288,1768386645745,-1017.19901256,0.0002631,2]
[401850290,1768386645754,-3996.57061365,0.00026384,7]
[401850292,1768386645764,-700.0,0.00026396,7]
[401850294,1768386645773,-500.0,0.00026439,2]
[401850296,1768386645782,-500.0,0.00026526,7]
[401850298,1768386645792,-200.0,0.0002654,14]
[401850300,1768386645801,-700.0,0.00026568,7]
[401850302,1768386645811,-200.0,0.00026576,2]
[401850304,1768386645820,-500.0,0.00026576,2]
[401850306,1768386645830,-160.0,0.00026576,6]
[401850309,1768386645839,-700.0,0.00026591,7]
[401850311,1768386645848,-500.0,0.00026591,7]
[401850313,1768386645857,-323.9,0.00026655,2]
[401850316,1768386645866,-1367.0,0.00026682,2]
[401850318,1768386645875,-629.0,0.00026682,2]
[401850320,1768386645884,-2147.0,0.00026682,2]
[401850322,1768386645893,-417.0,0.00026682,2]
[401850325,1768386645902,-417.0,0.00026682,2]
[401850328,1768386645912,-715.0,0.00026682,2]
[401850330,1768386645922,-178.0,0.00026682,2]
[401850332,1768386645931,-500.0,0.00026713,2]
[401850334,1768386645940,-500.0,0.00026755,7]
[401850336,1768386645949,-1265.06,0.0002676,120]
[401850338,1768386645959,-587.44774324,0.00026802,22]
[401850340,1768386645969,-591.12357233,0.00026843,7]
[401850342,1768386645978,-550.0,0.00026849,2]
[401850343,1768386645987,-1550.0,0.00026849,2]
[401850345,1768386645996,-500.0,0.0002685,2]
[401850347,1768386646006,-5000.0,0.00026852,2]
[401850349,1768386646015,-160.0,0.00026888,7]
[401850351,1768386646024,-500.0,0.00026984,7]
[401850353,1768386646035,-500.0,0.00026987,2]
[401850355,1768386646044,-600.0,0.00027,14]
[401850357,1768386646053,-1020.0,0.00027,2]
[401850359,1768386646063,-2000.0,0.00027,7]
[401850361,1768386646072,-253.17,0.00027,7]
[401850363,1768386646081,-253.14,0.00027,7]
[401850365,1768386646091,-4120.47,0.00027,14]
[401850367,1768386646100,-700.0,0.00027022,7]
[401850370,1768386646110,-700.0,0.00027093,7]
[401850372,1768386646119,-32272.36,0.000271,2]
[401850374,1768386646127,-167.77,0.000271,7]
[401850376,1768386646136,-500.0,0.00027124,2]
[401850378,1768386646145,-500.0,0.00027162,7]
[401850380,1768386646154,-500.0,0.00027169,7]
[401850381,1768386646163,-2000.0,0.00027173,7]
[401850383,1768386646172,-2000.0,0.00027182,7]
[401850385,1768386646181,-2000.0,0.00027191,7]
[401850387,1768386646191,-2000.0,0.000272,7]
[401850389,1768386646200,-160.0,0.000272,8]
[401850391,1768386646210,-594.41498494,0.00027224,7]
[401850393,1768386646220,-500.0,0.00027261,2]
[401850395,1768386646230,-700.0,0.00027287,7]
[401850397,1768386646240,-155.0,0.00027288,24]
[401850399,1768386646250,-1000.0,0.00027299,30]
[401850401,1768386646261,-1000.0,0.00027299,30]
[401850403,1768386646273,-1000.0,0.00027299,30]
[401850405,1768386646283,-715.0,0.00027299,30]
[401850407,1768386646293,-2222.24,0.000273,7]
[401850409,1768386646302,-1047.20552054,0.00027307,7]
[401850411,1768386646312,-1633.27143657,0.0002739,120]
[401850413,1768386646322,-394.15965016,0.0002739,7]
[401850415,1768386646331,-996.0967193,0.00027391,7]
[401850417,1768386646340,-1265.06,0.00027396,120]
[401850419,1768386646349,-278.12978548,0.00027397,3]
[401850421,1768386646359,-650.0,0.00027397,5]
[401850423,1768386646368,-300.0,0.00027397,2]
[401850425,1768386646377,-300.0,0.00027397,2]
[401850427,1768386646386,-300.0,0.00027397,2]
[401850428,1768386646399,-300.0,0.00027397,2]
[401850430,1768386646408,-300.0,0.00027397,2]
[401850432,1768386646417,-300.0,0.00027397,2]
[401850434,1768386646427,-300.0,0.00027397,2]
[401850436,1768386646438,-300.0,0.00027397,2]
[401850438,1768386646447,-300.0,0.00027397,2]
[401850440,1768386646456,-156.87039,0.00027397,7]
[401850442,1768386646466,-500.0,0.00027397,5]
[401850444,1768386646476,-515.68473116,0.00027397,5]
[401850453,1768386646562,-1650.0,0.00027397,5]
[401850455,1768386646573,-500.0,0.00027398,2]
[401850457,1768386646582,-45974.0104959,0.000275,2]
[401850459,1768386646590,-160.0,0.00027512,9]
[401850461,1768386646599,-500.0,0.00027535,2]
[401850463,1768386646609,-2994.16484919,0.00027622,2]
[401850465,1768386646618,-587.44774324,0.00027624,23]
[401850467,1768386646628,-4840.44,0.00027671,4]
[401850469,1768386646637,-500.0,0.00027672,2]
[401850471,1768386646646,-2994.16484919,0.00027684,2]
[401850473,1768386646655,-1000.0,0.00027777,5]
[401850475,1768386646664,-500.0,0.00027809,2]
[401850476,1768386646673,-160.0,0.00027824,10]
[401850478,1768386646682,-185.0,0.00027836,26]
[401850480,1768386646692,-800.0,0.00027845,2]
[401850482,1768386646701,-5000.0,0.00027935,2]
[401850484,1768386646710,-750.0,0.00027945,5]
[401850486,1768386646719,-1000.0,0.00027945,5]
[401850488,1768386646728,-250.0,0.00027945,5]
[401850490,1768386646737,-250.0,0.00027945,5]
[401850492,1768386646747,-1750.0,0.00027945,5]
[401850494,1768386646755,-500.0,0.00027946,2]
[401850496,1768386646764,-2000.0,0.00027977,7]
[401850498,1768386646774,-2000.0,0.00027986,7]
[401850500,1768386646783,-2000.0,0.00027994,7]
[401850502,1768386646792,-15332.50098657,0.00028,2]
[401850504,1768386646801,-1257.80356366,0.00028,120]
[401850506,1768386646810,-1020.0,0.00028,2]
[401850507,1768386646818,-2000.0,0.00028,7]
[401850509,1768386646827,-2000.0,0.00028003,7]
[401850511,1768386646836,-2706.57150745,0.00028011,7]
[401850513,1768386646845,-2000.0,0.00028012,7]
[401850515,1768386646853,-2000.0,0.00028021,7]
[401850517,1768386646862,-2000.0,0.0002803,7]
[401850519,1768386646872,-2000.0,0.00028038,7]
[401850521,1768386646882,-2000.0,0.00028047,7]
[401850523,1768386646891,-2000.0,0.00028056,7]
[401850525,1768386646900,-2994.16484919,0.00028059,2]
[401850527,1768386646909,-2000.0,0.00028065,7]
[401850529,1768386646918,-2000.0,0.00028074,7]
[401850531,1768386646927,-2000.0,0.00028082,7]
[401850533,1768386646936,-500.0,0.00028083,2]
[401850535,1768386646946,-2000.0,0.00028091,7]
[401850537,1768386646954,-1591.0092294,0.000281,7]
[401850538,1768386646964,-2000.0,0.000281,7]
[401850540,1768386646973,-323.9,0.00028115,5]
[401850542,1768386646984,-160.0,0.00028135,11]
[401850544,1768386646993,-253.17,0.000282,7]
[401850546,1768386647002,-253.14,0.000282,7]
[401850548,1768386647011,-4120.47,0.000282,14]
[401850550,1768386647020,-500.0,0.0002822,2]
[401850552,1768386647030,-2222.24,0.000283,7]
[401850554,1768386647040,-32272.36,0.000283,2]
[401850556,1768386647049,-1092.23828397,0.0002831,2]
[401850558,1768386647058,-500.0,0.00028357,2]
[401850560,1768386647069,-2994.16484919,0.00028382,2]
[401850562,1768386647077,-174.0,0.00028384,29]
[401850564,1768386647086,-800.0,0.00028396,2]
[401850566,1768386647095,-587.44774324,0.00028447,25]
[401850567,1768386647104,-160.0,0.00028447,12]
[401850569,1768386647113,-1206.4488989,0.0002849,120]
[401850570,1768386647122,-812.64966449,0.00028493,5]
[401850571,1768386647131,-1349.80836073,0.00028493,5]
[401850572,1768386647140,-350.0,0.00028493,5]
[401850573,1768386647149,-350.0,0.00028493,5]
[401850574,1768386647157,-1806.71612592,0.00028493,5]
[401850575,1768386647166,-500.0,0.00028494,2]
[401850576,1768386647175,-213785.71144258,0.000285,7]
[401850577,1768386647226,-2662.80867801,0.000285,7]
[401850648,1768386648041,-7147.67088681,0.0002349,10]
[401850654,1768386648095,-621.0,0.0001821,2]
[401850668,1768386648220,-500.0,0.00013698,2]
[401850670,1768386648230,-500.0,0.00013698,2]
[401850672,1768386648240,-13529.53090947,0.0001821,2]
[401850674,1768386648249,-18141.34911319,0.0002349,10]
[401850676,1768386648259,-1041.66666667,0.00025,10]
[401850678,1768386648269,-82136.34443514,0.000285,7]
[401850680,1768386648277,-151.0,0.000285,7]
[401850682,1768386648287,-151.0,0.000285,2]
[401850684,1768386648296,-287.20957,0.000285,2]
[401850686,1768386648306,-151.0,0.000285,7]
[401850688,1768386648315,-151.0,0.000285,7]
[401850690,1768386648324,-151.0,0.000285,7]
[401850692,1768386648334,-151.0,0.000285,7]
[401850694,1768386648343,-2297.615063,0.000285,7]
[401850696,1768386648353,-2297.615063,0.000285,7]
[401850698,1768386648362,-2297.615063,0.000285,7]
[401850700,1768386648374,-2297.615063,0.000285,7]
[401850702,1768386648383,-151.0,0.000285,7]
[401850704,1768386648396,-174.762568,0.000285,7]
[401850706,1768386648405,-839.619726,0.000285,7]
[401850708,1768386648414,-839.619726,0.000285,7]
[401850710,1768386648423,-839.619726,0.000285,7]
[401850712,1768386648434,-151.0,0.000285,7]
[401850714,1768386648443,-151.0,0.000285,7]
[401850716,1768386648453,-839.619726,0.000285,7]
[401850718,1768386648464,-151.0,0.000285,7]
[401850720,1768386648474,-280.61334,0.000285,7]
[401850722,1768386648483,-413.0,0.00028573,120]
[401850724,1768386648492,-4805.83628123,0.00028622,7]
[401850726,1768386648501,-500.0,0.00028631,2]
[401850728,1768386648511,-24406.75,0.000287,4]
[401850730,1768386648520,-2994.16484919,0.00028705,2]
[401850732,1768386648529,-177.0,0.00028707,120]
[401850734,1768386648538,-7097.90940985,0.00028734,7]
[401850736,1768386648547,-160.0,0.00028759,13]
[401850738,1768386648557,-4000.0,0.0002876,5]
[401850741,1768386648566,-19150.76538371,0.0002876,2]
[401850742,1768386648575,-170.43404187,0.0002876,120]
[401850744,1768386648584,-1150.10098827,0.00028767,120]
[401850746,1768386648594,-581.0,0.00028767,120]
[401850748,1768386648603,-846.224737,0.00028767,60]
[401850750,1768386648612,-500.0,0.00028768,2]
[401850752,1768386648621,-172.62475579,0.000288,7]
[401850754,1768386648630,-2994.16484919,0.00028857,2]
[401850756,1768386648638,-581.0,0.00028904,120]
[401850758,1768386648647,-355.01455049,0.00028905,2]
[401850760,1768386648656,-314.0,0.00028932,31]
[401850762,1768386648665,-1041.66666667,0.00029,7]
[401850764,1768386648675,-890.99954281,0.00029,2]
[401850766,1768386648684,-1020.0,0.00029,2]
[401850768,1768386648693,-2000.0,0.00029,7]
[401850770,1768386648702,-5000.0,0.00029018,2]
[401850772,1768386648712,-24018.38257368,0.0002902,2]
[401850774,1768386648720,-581.0,0.00029041,120]
[401850776,1768386648729,-450.0,0.00029041,5]
[401850778,1768386648738,-450.0,0.00029041,5]
[401850780,1768386648747,-160.0,0.00029071,14]
[401850782,1768386648756,-581.0,0.00029178,120]
[401850784,1768386648765,-2994.16484919,0.00029264,2]
[401850786,1768386648774,-587.44774324,0.00029269,26]
[401850788,1768386648789,-581.0,0.00029315,120]
[401850790,1768386648799,-4840.44,0.00029315,6]
[401850792,1768386648809,-160.0,0.00029383,15]
[401850802,1768386648897,-800.0,0.00029396,2]
[401850804,1768386648906,-581.0,0.00029452,120]
[401850806,1768386648916,-3001.67932054,0.00029513,2]
[401850808,1768386648926,-167.12486556,0.00029517,5]
[401850810,1768386648937,-1265.06,0.0002952,120]
[401850812,1768386648946,-323.9,0.00029575,7]
[401850814,1768386648957,-2994.16484919,0.00029584,2]
[401850816,1768386648967,-581.0,0.00029589,120]
[401850818,1768386648976,-550.0,0.00029589,5]
[401850820,1768386648985,-550.0,0.00029589,5]
[401850822,1768386648994,-200.0,0.000296,120]
[401850824,1768386649005,-800.0,0.0002965,2]
[401850826,1768386649014,-728.0,0.00029675,3]
[401850828,1768386649023,-1367.0,0.00029682,2]
[401850830,1768386649033,-629.0,0.00029682,2]
[401850832,1768386649042,-2147.0,0.00029682,2]
[401850834,1768386649051,-417.0,0.00029682,2]
[401850836,1768386649060,-417.0,0.00029682,2]
[401850838,1768386649069,-715.0,0.00029682,2]
[401850840,1768386649079,-178.0,0.00029682,2]
[401850842,1768386649089,-160.0,0.00029695,16]
[401850844,1768386649098,-581.0,0.00029726,120]
[401850846,1768386649107,-2994.16484919,0.00029743,2]
[401850848,1768386649116,-3000.0,0.00029768,14]
[401850850,1768386649125,-800.0,0.00029858,2]
[401850852,1768386649133,-581.0,0.00029863,120]
[401850854,1768386649142,-2994.16484919,0.00029894,2]
[401850856,1768386649151,-1897.0,0.00029898,14]
[401850858,1768386649160,-213014.61887465,0.00029998,2]
[401852253,1768387054145,1143.25,0.000254,120]
[401852254,1768387078150,155.6198689,0.000254,120]
[401852255,1768387078369,300.0,0.00011816,120]
[401852256,1768387080239,300.0,0.00011816,120]
[401852257,1768387167133,3385.29956829,0.0002,120]
[401852258,1768387208355,796.78597867,0.000254,120]
[401852264,1768387320821,2000.0,0.000254,120]
[401852265,1768387336145,200.0,0.000253,120]
[401852266,1768387345311,1500.0,0.000254,120]
[401852271,1768387454299,194.9653714,6.912e-05,2]
[401852276,1768387538293,788.0,0.000254,120]
[401852277,1768387592622,317.6,0.000254,120]
[401852278,1768387600364,278.50116002,0.000253,120]
[401852280,1768387628122,285.87,0.00011491,120]
[401852282,1768387795773,200.0,0.000254,120]
[401852357,1768387837796,-725.71406272,0.0001,2]
[401852358,1768387837809,-531.45928758,0.0001,2]
[401852359,1768387837820,-560.0,0.0001,2]
[401852360,1768387837830,-191.124,0.00010014,2]
[401852361,1768387837840,-649.9130551,0.00010039,2]
[401852362,1768387837849,-300.0,0.00010115,2]
[401852364,1768387837859,-300.0,0.00010115,2]
[401852366,1768387837868,-500.0,0.00010115,2]
[401852368,1768387837877,-500.0,0.00010115,2]
[401852371,1768387837887,-500.0,0.00010115,2]
[401852373,1768387837897,-500.0,0.00010115,2]
[401852375,1768387837906,-181.34645891,0.00010115,2]
[401852377,1768387837915,-500.0,0.00010115,2]
[401852379,1768387837925,-500.0,0.00010115,2]
[401852381,1768387837935,-192.76249801,0.00010115,2]
[401852383,1768387837944,-50000.0,0.00010116,2]
[401852385,1768387837954,-398.72407075,0.00010116,2]
[401852387,1768387837963,-886949.51280102,0.00010117,2]
[401852389,1768387837973,-11579.127755,0.00010352,2]
[401852391,1768387837982,-300.0,0.00010422,2]
[401852393,1768387837991,-300.0,0.00010422,2]
[401852395,1768387838000,-300.0,0.00010422,2]
[401852397,1768387838010,-300.0,0.00010422,2]
[401852399,1768387838019,-300.0,0.00010422,2]
[401852401,1768387838028,-300.0,0.00010422,2]
[401852403,1768387838038,-300.0,0.00010422,2]
[401852405,1768387838047,-300.0,0.00010422,2]
[401852407,1768387838057,-300.0,0.00010422,2]
[401852409,1768387838066,-300.0,0.00010422,2]
[401852411,1768387838076,-300.0,0.00010422,2]
[401852413,1768387838086,-300.0,0.00010422,2]
[401852415,1768387838096,-300.0,0.00010422,2]
[401852417,1768387838105,-300.0,0.00010422,2]
[401852419,1768387838115,-300.0,0.00010422,2]
[401852422,1768387838125,-600.0,0.00010422,2]
[401852424,1768387838135,-151.0,0.00011,2]
[401852426,1768387838144,-151.0,0.00011,2]
[401852428,1768387838153,-420.0,0.00011125,2]
[401852430,1768387838163,-720.0,0.00011464,2]
[401852431,1768387838172,-766.89740501,0.00012039,2]
[401852433,1768387838182,-587.0,0.00012237,2]
[401852434,1768387838192,-151.88,0.00012329,2]
[401852436,1768387838201,-520.32241664,0.00012329,2]
[401852438,1768387838210,-520.32241664,0.00012329,2]
[401852440,1768387838221,-520.32241664,0.00012329,2]
[401852442,1768387838230,-520.32241664,0.00012329,2]
[401852444,1768387838240,-520.32241664,0.00012329,2]
[401852461,1768387838387,-520.32241664,0.00012329,2]
[401852463,1768387838401,-520.32241664,0.00012329,2]
[401852465,1768387838410,-520.32241664,0.00012329,2]
[401852467,1768387838420,-520.32241664,0.00012329,2]
[401852469,1768387838429,-520.32241664,0.00012329,2]
[401852471,1768387838439,-520.32241664,0.00012329,2]
[401852473,1768387838449,-520.32241664,0.00012329,2]
[401852475,1768387838459,-520.32241664,0.00012329,2]
[401852477,1768387838468,-520.32241664,0.00012329,2]
[401852479,1768387838477,-520.32241664,0.00012329,2]
[401852481,1768387838486,-520.32241664,0.00012329,2]
[401852482,1768387838496,-520.32241664,0.00012329,2]
[401852485,1768387838505,-520.32241664,0.00012329,2]
[401852487,1768387838515,-520.32241664,0.00012329,2]
[401852488,1768387838524,-520.32241664,0.00012329,2]
[401852490,1768387838534,-520.32241664,0.00012329,2]
[401852492,1768387838544,-520.32241664,0.00012329,2]
[401852494,1768387838553,-520.32241664,0.00012329,2]
[401852496,1768387838562,-520.32241664,0.00012329,2]
[401852498,1768387838571,-520.32241664,0.00012329,2]
[401852500,1768387838582,-520.32241664,0.00012329,2]
[401852502,1768387838591,-520.32241664,0.00012329,2]
[401852503,1768387838600,-520.32241664,0.00012329,2]
[401852505,1768387838609,-520.32241664,0.00012329,2]
[401852507,1768387838619,-520.32241664,0.00012329,2]
[401852509,1768387838628,-520.32241664,0.00012329,2]
[401852511,1768387838638,-520.32241664,0.00012329,2]
[401852513,1768387838648,-520.32241664,0.00012329,2]
[401852515,1768387838658,-520.32241664,0.00012329,2]
[401852517,1768387838668,-520.32241664,0.00012329,2]
[401852519,1768387838678,-520.32241664,0.00012329,2]
[401852522,1768387838688,-520.32241664,0.00012329,2]
[401852523,1768387838697,-520.32241664,0.00012329,2]
[401852525,1768387838707,-520.32241664,0.00012329,2]
[401852527,1768387838717,-520.32241664,0.00012329,2]
[401852529,1768387838727,-520.32241664,0.00012329,2]
[401852531,1768387838736,-520.32241664,0.00012329,2]
[401852533,1768387838750,-520.32241664,0.00012329,2]
[401852535,1768387838761,-520.32241664,0.00012329,2]
[401852537,1768387838770,-520.32241664,0.00012329,2]
[401852539,1768387838780,-520.32241664,0.00012329,2]
[401852541,1768387838793,-520.32241664,0.00012329,2]
[401852543,1768387838803,-520.32241664,0.00012329,2]
[401852545,1768387838813,-520.32241664,0.00012329,2]
[401852547,1768387838823,-520.32241664,0.00012329,2]
[401852549,1768387838832,-520.32241664,0.00012329,2]
[401852551,1768387838842,-520.32241664,0.00012329,2]
[401852553,1768387838851,-520.32241664,0.00012329,2]
[401852555,1768387838860,-520.32241664,0.00012329,2]
[401852557,1768387838869,-520.32241664,0.00012329,2]
[401852559,1768387838879,-520.32241664,0.00012329,2]
[401852561,1768387838888,-520.32241664,0.00012329,2]